[Event "Marshall CC U2400 January 2024"]
[Site "New York"]
[Date "2024.01.21"]
[Round "3.5"]
[White "Shen, Leo Xiaohang"]
[Black "Aravindakshan, Sahana"]
[Result "1-0"]
[ECO "B22"]
[WhiteElo "1488"]
[BlackElo "1957"]
[Annotator "RC"]
[PlyCount "97"]
[EventDate "2024.01.19"]
[EventType "swiss"]
[EventCountry "USA"]
[SourceTitle "playchess.com"]
[Source "ChessBase"]
[SourceQuality "1"]
[TimeControl "5400+30"]

1. e4 {[%emt 0:00:02]} c5 {[%emt 0:00:08]} 2. Nf3 {[%emt 0:00:02]} Nc6 {[%emt 0:00:07]} 3. c3 {[%emt 0:00:03]} d5 {[%emt 0:00:16]} 4. exd5 {[%emt 0:00:04]} Qxd5 {[%emt 0:00:04]} 5. d4 {[%emt 0:00:07]} Bf5 {[%emt 0:00:06]} 6. Be3 {[%emt 0:01:00]} Nf6 {[%emt 0:00:27]} 7. c4 {[%emt 0:00:58]} Qd6 {[%emt 0:14:40]} 8. d5 {[%emt 0:01:21]} Nb4 {[%emt 0:01:56]} 9. Na3 {[%emt 0:00:36]} O-O-O {[%emt 0:04:46]} 10. Be2 {[%emt 0:01:26]} e6 {[%emt 0:02:40]} 11. dxe6 {[%emt 0:02:55]} Qa6 {[%emt 0:09:43]} 12. Qb3 {[%emt 0:04:02]} Nd3+ {[%emt 0:06:36]} 13. Bxd3 {[%emt 0:00:48]} Rxd3 {[%emt 0:00:27]} 14. Qb5 {[%emt 0:00:45]} Qxe6 {[%emt 0:00:31]} 15. O-O {[%emt 0:00:48]} Bd6 {[%emt 0:25:31]} 16. Bxc5 {[%emt 0:05:16]} a6 {[%emt 0:00:42]} 17. Qb4 {[%emt 0:01:45]} Bc7 {[%emt 0:01:14]} 18. Rfe1 {[%emt 0:02:04]} Ne4 {[%emt 0:04:46]} 19. Be3 {[%emt 0:04:08]} Bg4 {[%emt 0:02:18]} 20. Nd4 {[%emt 0:10:34]} Qe5 {[%emt 0:02:29]} 21. f4 {[%emt 0:00:51]} Qa5 {[%emt 0:06:31]} 22. Nac2 {[%emt 0:01:23]} Qh5 {[%emt 0:02:50]} 23. Qe7 {[%emt 0:05:09]} Nf6 {[%emt 0:03:16]} 24. Nb4 {[%emt 0:03:45]} Rd1 {[%emt 0:01:13]} 25. Raxd1 {[%emt 0:00:25]} Bxd1 {[%emt 0:00:02]} 26. Nd5 {[%emt 0:00:48]} Nxd5 {[%emt 0:02:42]} 27. cxd5 {[%emt 0:52:55]} Rd8 {[%emt 0:01:57]} 28. h3 {[%emt 0:00:00]} Kb8 {[%emt 0:01:12]} 29. Qb4 {[%emt 0:00:00]} Ka8 {[%emt 0:01:45]} 30. Qc5 {[%emt 0:00:00]} Bb8 {[%emt 0:00:31]} 31. b3 {[%emt 0:00:00]} Ba7 {[%emt 0:02:18]} 32. Qc7 {[%emt 0:00:00]} Rh8 {[%emt 0:00:59]} 33. Qc1 {[%emt 0:00:00]} Re8 {[%emt 0:01:15]} 34. Qc3 {[%emt 0:00:00]} g5 {[%emt 0:00:59]} 35. d6 {[%emt 0:00:00]} gxf4 {[%emt 0:00:27]} 36. d7 {[%emt 0:00:00]} Rb8 {[%emt 0:00:27]} 37. Bxf4 {[%emt 0:00:00]} Qh4 {[%emt 0:00:38]} 38. g3 {[%emt 0:00:00]} Qxh3 {[%emt 0:00:25]} 39. Rxd1 {[%emt 0:00:00]} Qxd7 {[%emt 0:00:19]} 40. Bxb8 {[%emt 0:00:00]} Kxb8 {[%emt 0:00:06]} 41. Kg2 {[%emt 0:00:00]} Qd5+ {[%emt 0:00:23]} 42. Qf3 {[%emt 0:00:00]} Qa5 {[%emt 0:01:08]} 43. Qf4+ {[%emt 0:00:00]} Ka8 {[%emt 0:00:09]} 44. Rc1 {[%emt 0:00:00]} Qd5+ {[%emt 0:00:44]} 45. Nf3 {[%emt 0:00:00]} Qe6 {[%emt 0:00:26]} 46. Re1 {[%emt 0:00:00]} Qc6 {[%emt 0:00:42]} 47. Qc4 {[%emt 0:00:00]} Qd6 {[%emt 0:00:37]} 48. Re8+ {[%emt 0:00:00]} Bb8 {[%emt 0:00:01]} 49. Qf4 {[%emt 0:00:00]} 1-0

[Event "Marshall CC U2400 January 2024"]
[Site "New York"]
[Date "2024.01.21"]
[Round "4.1"]
[White "Hoffman, Luc"]
[Black "Jiang, Jason"]
[Result "1-0"]
[ECO "A05"]
[WhiteElo "2068"]
[BlackElo "1864"]
[Annotator "RC"]
[PlyCount "127"]
[EventDate "2024.01.19"]
[EventType "swiss"]
[EventCountry "USA"]
[SourceTitle "playchess.com"]
[Source "ChessBase"]
[SourceQuality "1"]
[TimeControl "5400+30"]

1. Nf3 {[%emt 0:00:36]} Nf6 {[%emt 0:00:22]} 2. e3 {[%emt 0:00:18]} e6 {[%emt 0:01:56]} 3. b3 {[%emt 0:01:16]} d6 {[%emt 0:04:39]} 4. d4 {[%emt 0:00:46]} Be7 {[%emt 0:01:05]} 5. Bd3 {[%emt 0:02:59]} Nbd7 {[%emt 0:02:14]} 6. Bb2 {[%emt 0:01:12]} O-O {[%emt 0:03:27]} 7. c4 {[%emt 0:05:15]} e5 {[%emt 0:03:58]} 8. Nc3 {[%emt 0:06:12]} c6 {[%emt 0:06:22]} 9. e4 {[%emt 0:02:31]} Nh5 {[%emt 0:14:19]} 10. O-O {[%emt 0:09:50]} Nf4 {[%emt 0:04:57]} 11. Ne2 {[%emt 0:01:46]} Nxe2+ {[%emt 0:04:32]} 12. Bxe2 {[%emt 0:02:31]} Qc7 {[%emt 0:02:20]} 13. Ne1 {[%emt 0:04:31]} exd4 {[%emt 0:06:12]} 14. Bxd4 {[%emt 0:01:14]} Bf6 {[%emt 0:00:24]} 15. Nc2 {[%emt 0:01:32]} Re8 {[%emt 0:01:08]} 16. Bxf6 {[%emt 0:06:31]} Nxf6 {[%emt 0:00:14]} 17. f3 {[%emt 0:00:04]} d5 {[%emt 0:03:04]} 18. exd5 {[%emt 0:03:43]} cxd5 {[%emt 0:01:15]} 19. Qd2 {[%emt 0:01:56]} dxc4 {[%emt 0:02:49]} 20. Bxc4 {[%emt 0:01:05]} Bf5 {[%emt 0:04:53]} 21. Nd4 {[%emt 0:00:39]} Rad8 {[%emt 0:03:08]} 22. Qf2 {[%emt 0:00:30]} Bd7 {[%emt 0:04:13]} 23. Rfd1 {[%emt 0:02:19]} Qb6 {[%emt 0:01:56]} 24. Nb5 {[%emt 0:01:47]} Qxf2+ {[%emt 0:02:52]} 25. Kxf2 {[%emt 0:00:09]} Bxb5 {[%emt 0:00:20]} 26. Bxb5 {[%emt 0:00:20]} Rxd1 {[%emt 0:00:38]} 27. Rxd1 {[%emt 0:00:07]} Rc8 {[%emt 0:00:07]} 28. Bc4 {[%emt 0:00:29]} Kf8 {[%emt 0:01:15]} 29. g4 {[%emt 0:02:10]} h6 {[%emt 0:02:35]} 30. h4 {[%emt 0:00:20]} g5 {[%emt 0:03:04]} 31. Kg3 {[%emt 0:01:21]} a6 {[%emt 0:01:38]} 32. a4 {[%emt 0:01:07]} Rc7 {[%emt 0:07:57]} 33. Rd8+ {[%emt 0:01:20]} Ke7 {[%emt 0:01:50]} 34. Rh8 {[%emt 0:03:10]} Rc6 {[%emt 0:00:08]} 35. h5 {[%emt 0:00:49]} Nd7 {[%emt 0:02:40]} 36. Bd5 {[%emt 0:01:34]} Rb6 {[%emt 0:00:08]} 37. a5 {[%emt 0:00:25]} Rb5 {[%emt 0:00:40]} 38. Bc4 {[%emt 0:00:17]} Rxa5 {[%emt 0:00:08]} 39. Rxh6 {[%emt 0:00:05]} b5 {[%emt 0:00:23]} 40. Bd3 {[%emt 0:01:41]} Ra3 {[%emt 0:00:18]} 41. Bc2 {[%emt 0:00:39]} Nc5 {[%emt 0:00:44]} 42. Rc6 {[%emt 0:00:45]} Nd7 {[%emt 0:01:39]} 43. h6 {[%emt 0:00:32]} Nf6 {[%emt 0:00:15]} 44. h7 {[%emt 0:00:52]} Nxh7 {[%emt 0:00:04]} 45. Bxh7 {[%emt 0:00:08]} Rxb3 {[%emt 0:00:39]} 46. Rxa6 {[%emt 0:00:07]} Rb2 {[%emt 0:00:34]} 47. Rb6 {[%emt 0:00:30]} b4 {[%emt 0:00:52]} 48. Rb7+ {[%emt 0:00:25]} Kf8 {[%emt 0:00:08]} 49. Be4 {[%emt 0:00:34]} f6 {[%emt 0:00:07]} 50. Bd5 {[%emt 0:00:33]} Rd2 {[%emt 0:00:09]} 51. Bc4 {[%emt 0:00:34]} Rd6 {[%emt 0:02:09]} 52. Rxb4 {[%emt 0:00:14]} Ke7 {[%emt 0:00:04]} 53. Rb7+ {[%emt 0:00:06]} Kd8 {[%emt 0:00:11]} 54. Kf2 {[%emt 0:00:40]} Kc8 {[%emt 0:00:19]} 55. Rf7 {[%emt 0:00:15]} Rc6 {[%emt 0:00:06]} 56. Bd5 {[%emt 0:00:22]} Rd6 {[%emt 0:00:07]} 57. Be4 {[%emt 0:00:23]} Kd8 {[%emt 0:00:09]} 58. Ke3 {[%emt 0:00:06]} Ke8 {[%emt 0:00:32]} 59. Ra7 {[%emt 0:00:19]} Re6 {[%emt 0:00:08]} 60. Kd4 {[%emt 0:00:42]} Kf8 {[%emt 0:00:43]} 61. Rc7 {[%emt 0:00:35]} Re5 {[%emt 0:00:20]} 62. Bd5 {[%emt 0:00:52]} Ke8 {[%emt 0:00:08]} 63. Kc5 {[%emt 0:00:18]} Kd8 {[%emt 0:00:51]} 64. Rf7 {[%emt 0:00:19]} 1-0

[Event "Marshall CC U2400 January 2024"]
[Site "New York"]
[Date "2024.01.21"]
[Round "4.4"]
[White "Shen, Leo Xiaohang"]
[Black "Olsen, Robert"]
[Result "1-0"]
[ECO "B06"]
[WhiteElo "1488"]
[BlackElo "1825"]
[Annotator "NA RC COMBH"]
[PlyCount "137"]
[EventDate "2024.01.19"]
[EventType "swiss"]
[EventCountry "USA"]
[SourceTitle "playchess.com"]
[Source "ChessBase"]
[SourceQuality "1"]
[TimeControl "5400+30"]

1. e4 {[%emt 0:00:01]} d6 {[%emt 0:00:06]} 2. d4 {[%emt 0:00:04]} g6 {[%emt 0:00:05]} 3. Nf3 {[%emt 0:00:05]} Bg7 {[%emt 0:00:06]} 4. Nc3 {[%emt 0:00:18]} a6 {[%emt 0:00:13]} 5. Bg5 {[%emt 0:00:48]} h6 {[%emt 0:04:31]} 6. Be3 {[%emt 0:00:43]} b5 {[%emt 0:00:18]} 7. a3 {[%emt 0:00:40]} Nd7 {[%emt 0:02:06]} 8. Be2 {[%emt 0:01:56]} Bb7 {[%emt 0:00:21]} 9. O-O {[%emt 0:00:56]} c5 {[%emt 0:02:03]} 10. b4 {[%emt 0:02:16]} (10. dxc5 $14 Nxc5 11. e5) 10... cxb4 {[%emt 0:08:29]} 11. axb4 {[%emt 0:00:11]} Rc8 {[%emt 0:00:05]} 12. Qd2 {[%emt 0:02:53]} Qc7 {[%emt 0:05:12]} 13. Ra3 {[%emt 0:01:00]} Nb6 {[%emt 0:04:21]} 14. Bd3 {[%emt 0:03:04]} Nc4 {[%emt 0:02:18]} 15. Bxc4 {[%emt 0:00:06]} Qxc4 {[%emt 0:00:04]} 16. Rb1 {[%emt 0:01:55]} Nf6 {[%emt 0:16:31]} 17. Qd3 {[%emt 0:01:33]} O-O {[%emt 0:02:57]} 18. Nd2 {[%emt 0:03:57]} Qc7 {[%emt 0:02:36]} 19. f3 {[%emt 0:05:09]} Rfd8 {[%emt 0:05:44]} 20. Rc1 {[%emt 0:03:26]} Nd7 {[%emt 0:04:24]} 21. Ne2 {[%emt 0:02:31]} Nb6 {[%emt 0:00:35]} 22. c3 {[%emt 0:01:35]} Nc4 {[%emt 0:01:21]} 23. Nxc4 {[%emt 0:00:46]} Qxc4 {[%emt 0:00:06]} 24. Qd2 {[%emt 0:00:14]} Kh7 {[%emt 0:00:48]} 25. Kf2 {[%emt 0:04:40]} Rf8 {[%emt 0:01:34]} 26. Kg1 {[%emt 0:01:13]} e6 {[%emt 0:00:47]} 27. Bf4 {[%emt 0:01:16]} e5 {[%emt 0:01:58]} 28. Be3 {[%emt 0:00:57]} f5 {[%emt 0:01:52]} 29. exf5 {[%emt 0:01:58]} gxf5 {[%emt 0:00:39]} 30. Rd1 $15 {[%emt 0:02:40]} Qf7 {[%emt 0:11:01]} 31. Raa1 {[%emt 0:02:36]} f4 {[%emt 0:04:17]} 32. Bf2 {[%emt 0:00:06]} e4 {[%emt 0:00:55]} 33. d5 {[%emt 0:01:47]} exf3 {[%emt 0:03:07]} 34. Qd3+ {[%emt 0:00:16]} Kh8 {[%emt 0:00:43]} 35. Qxf3 {[%emt 0:00:11]} Rce8 {[%emt 0:00:16]} 36. Rd2 {[%emt 0:01:29]} Re5 {[%emt 0:01:32]} 37. Rad1 {[%emt 0:00:34]} Rg5 {[%emt 0:00:46]} 38. Bd4 {[%emt 0:01:00]} Be5 {[%emt 0:01:24]} 39. Kh1 {[%emt 0:02:09]} Bc8 {[%emt 0:01:04]} 40. h3 {[%emt 0:01:13]} h5 {[%emt 0:04:19]} 41. Rf1 {[%emt 0:01:14]} Kh7 {[%emt 0:00:41]} 42. Bg1 {[%emt 0:01:52]} Bb7 {[%emt 0:01:46]} 43. Bh2 {[%emt 0:01:11]} Rf5 {[%emt 0:00:21]} 44. Qe4 {[%emt 0:01:31]} Kh8 {[%emt 0:00:13]} 45. Rf3 {[%emt 0:01:21]} Rf6 {[%emt 0:01:36]} 46. Rd1 {[%emt 0:02:15]} Bc8 {[%emt 0:00:17]} 47. Nd4 {[%emt 0:01:08]} Bb7 {[%emt 0:02:42]} 48. Nc6 {[%emt 0:01:52]} Re8 {[%emt 0:01:33]} 49. Re1 {[%emt 0:01:19]} Bxc6 {[%emt 0:01:13]} 50. dxc6 {[%emt 0:00:02]} Rf8 {[%emt 0:01:16]} 51. Rd1 {[%emt 0:00:28]} Kg7 {[%emt 0:00:47]} 52. Ra1 {[%emt 0:01:27]} Qa7 {[%emt 0:00:32]} 53. Bg1 {[%emt 0:00:20]} Qa8 {[%emt 0:00:18]} 54. Bd4 {[%emt 0:00:44]} Bxd4 {[%emt 0:00:56]} 55. cxd4 {[%emt 0:00:06]} d5 {[%emt 0:00:15]} 56. Qxd5 {[%emt 0:00:15]} Qxc6 {[%emt 0:00:08]} 57. Qxh5 {[%emt 0:00:30]} Rf5 {[%emt 0:01:07]} 58. Qg4+ {[%emt 0:00:09]} Kh7 {[%emt 0:00:30]} 59. Qh4+ {[%emt 0:00:17]} Kg6 {[%emt 0:00:21]} 60. Qe7 {[%emt 0:00:31]} R8f6 {[%emt 0:00:20]} 61. Qa7 {[%emt 0:01:24]} Qd6 {[%emt 0:00:43]} 62. Rc3 {[%emt 0:03:50]} Rd5 {[%emt 0:01:17]} 63. Rc7 {[%emt 0:02:57]} Rxd4 {[%emt 0:00:25]} 64. Rg7+ {[%emt 0:00:08]} Kf5 {[%emt 0:00:07]} 65. g4+ {[%emt 0:01:09]} fxg3 {[%emt 0:00:58]} 66. Rf1+ {[%emt 0:00:10]} Rf4 {[%emt 0:00:42]} 67. Rxf4+ {[%emt 0:00:39]} Qxf4 {[%emt 0:00:37]} 68. Qc5+ {[%emt 0:00:53]} Qe5 {[%emt 0:00:06]} 69. Rg5+ {[%emt 0:00:07]} 1-0

[Event "Marshall CC U2400 January 2024"]
[Site "New York"]
[Date "2024.01.21"]
[Round "4.5"]
[White "Bonin, Jay"]
[Black "Berg, George"]
[Result "1-0"]
[ECO "D03"]
[WhiteElo "2166"]
[BlackElo "1842"]
[Annotator "RC"]
[PlyCount "87"]
[EventDate "2024.01.19"]
[EventType "swiss"]
[EventCountry "USA"]
[SourceTitle "playchess.com"]
[Source "ChessBase"]
[SourceQuality "1"]
[TimeControl "5400+30"]

1. d4 {[%emt 0:00:48]} Nf6 {[%emt 0:00:05]} 2. Nf3 {[%emt 0:00:04]} g6 {[%emt 0:00:07]} 3. Bg5 {[%emt 0:00:15]} Bg7 {[%emt 0:00:07]} 4. Nbd2 {[%emt 0:00:06]} d5 {[%emt 0:00:43]} 5. Bxf6 {[%emt 0:00:34]} Bxf6 {[%emt 0:00:05]} 6. e4 {[%emt 0:00:11]} dxe4 {[%emt 0:02:48]} 7. Nxe4 {[%emt 0:00:09]} Bg7 {[%emt 0:00:04]} 8. Bc4 {[%emt 0:01:07]} e6 {[%emt 0:02:10]} 9. c3 {[%emt 0:00:39]} O-O {[%emt 0:00:23]} 10. Qe2 {[%emt 0:00:39]} b6 {[%emt 0:01:30]} 11. O-O-O {[%emt 0:00:39]} Bb7 {[%emt 0:00:05]} 12. h4 {[%emt 0:00:49]} Bd5 {[%emt 0:02:01]} 13. Bd3 {[%emt 0:02:41]} Nd7 {[%emt 0:03:05]} 14. h5 {[%emt 0:00:42]} Nf6 {[%emt 0:00:23]} 15. hxg6 {[%emt 0:00:29]} hxg6 {[%emt 0:00:09]} 16. Nfg5 {[%emt 0:10:38]} Nxe4 {[%emt 0:01:04]} 17. Nxe4 {[%emt 0:00:04]} Bxa2 {[%emt 0:02:40]} 18. f4 {[%emt 0:00:24]} Qd5 {[%emt 0:02:27]} 19. g4 {[%emt 0:01:43]} Qa5 {[%emt 0:06:46]} 20. g5 {[%emt 0:07:37]} Rfd8 {[%emt 0:01:59]} 21. Nf6+ {[%emt 0:01:23]} Kf8 {[%emt 0:00:07]} 22. Rh7 {[%emt 0:01:12]} Bb3 {[%emt 0:05:32]} 23. Rdh1 {[%emt 0:08:10]} Qa1+ {[%emt 0:03:38]} 24. Bb1 {[%emt 0:00:11]} Ba2 {[%emt 0:00:26]} 25. Kc2 {[%emt 0:00:58]} Bxb1+ {[%emt 0:00:24]} 26. Rxb1 {[%emt 0:00:03]} Qa5 {[%emt 0:01:40]} 27. Qe4 {[%emt 0:05:12]} Qa4+ {[%emt 0:11:37]} 28. Kd2 {[%emt 0:02:10]} c5 {[%emt 0:01:04]} 29. Rxg7 {[%emt 0:07:00]} Kxg7 {[%emt 0:05:44]} 30. Qe5 {[%emt 0:01:00]} Kf8 {[%emt 0:06:45]} 31. Rh1 {[%emt 0:07:38]} Ke7 {[%emt 0:09:56]} 32. Rh7 {[%emt 0:17:36]} Rxd4+ {[%emt 0:08:18]} 33. cxd4 {[%emt 0:00:19]} Qxd4+ {[%emt 0:00:07]} 34. Qxd4 {[%emt 0:00:05]} cxd4 {[%emt 0:00:11]} 35. Ng4 {[%emt 0:00:22]} Kd6 {[%emt 0:03:39]} 36. Rxf7 {[%emt 0:00:23]} a5 {[%emt 0:01:02]} 37. Kd3 {[%emt 0:01:02]} Kc5 {[%emt 0:00:32]} 38. Ne5 {[%emt 0:00:36]} b5 {[%emt 0:00:46]} 39. Nxg6 {[%emt 0:01:08]} a4 {[%emt 0:00:09]} 40. Rc7+ {[%emt 0:00:31]} Kb6 {[%emt 0:00:18]} 41. Rc2 {[%emt 0:00:23]} Rd8 {[%emt 0:00:17]} 42. Ne5 {[%emt 0:00:22]} Rd6 {[%emt 0:01:41]} 43. g6 {[%emt 0:00:22]} b4 {[%emt 0:00:20]} 44. Nc4+ {[%emt 0:00:07]} 1-0

[Event "Marshall CC U2400 January 2024"]
[Site "New York"]
[Date "2024.01.22"]
[Round "5.2"]
[White "Kozower, Ethan"]
[Black "Bonin, Jay"]
[Result "0-1"]
[ECO "B12"]
[WhiteElo "1904"]
[BlackElo "2166"]
[Annotator "TA"]
[PlyCount "78"]
[EventDate "2024.01.19"]
[EventType "swiss"]
[EventCountry "USA"]
[SourceTitle "playchess.com"]
[Source "ChessBase"]
[SourceQuality "1"]
[TimeControl "5400+30"]

{[%evp 9,78,66,68,65,89,90,81,83,97,79,98,98,83,84,80,75,77,73,101,78,81,71,73,83,65,67,73,54,117,86,327,304,327,204,176,209,181,153,242,113,106,-43,-35,-254,-88,-283,-289,-330,-364,-363,-360,-352,-342,-333,-330,-342,-346,-328,-290,-444,-82,-231,-15,-15,0,-29995,-29996,-29997,-29998,-29998,-29999]} 1. e4 {[%emt 0:01:24][%cal Be2e4,Be4e5][%mdl 32]} c6 {[%emt 0:00:07]} 2. d4 {[%emt 0:00:27]} a6 {[%emt 0:00:04]} 3. Nd2 {[%emt 0:00:39]} d5 {[%emt 0:01:21]} 4. Ngf3 {[%emt 0:01:45]} Bg4 {[%emt 0:00:24]} 5. c3 {[%emt 0:02:40]} Nf6 {[%emt 0:04:32]} 6. e5 {[%emt 0:05:46]} Ng8 {[%emt 0:05:12]} 7. h3 {[%emt 0:05:42]} Bf5 {[%emt 0:00:47]} 8. Nh4 {[%emt 0:02:04] White is better.} Bc8 {[%emt 0:00:24]} 9. Bd3 {[%emt 0:01:33]} e6 {[%emt 0:02:58]} 10. Nhf3 {[%emt 0:07:49]} c5 {[%emt 0:04:47]} 11. O-O {[%emt 0:03:41]} Nc6 {[%emt 0:00:34]} 12. Re1 {[%emt 0:03:48]} cxd4 {[%emt 0:06:36]} 13. cxd4 {[%emt 0:00:26]} g6 {[%emt 0:06:25]} 14. Nf1 {[%emt 0:01:30]} Qb6 {[%emt 0:05:10]} 15. Bc2 {[%emt 0:12:07]} Bg7 {[%emt 0:08:03]} 16. a3 {[%emt 0:04:56]} Nge7 {[%emt 0:01:46]} 17. Rb1 {[%emt 0:03:27]} O-O {[%emt 0:00:53]} 18. Ne3 {[%emt 0:08:46]} h5 {[%emt 0:04:25] Dodges Ng4} (18... f5 $1 $14) 19. g4 {[%emt 0:01:37][%cal Bg2g4,Bg4h5,Bh5g6][%mdl 32]} (19. g3 {simplifies} Re8 20. Ng2 Nf5 21. Bxf5 exf5 22. Nf4) 19... f6 $2 {[%emt 0:00:50]} (19... hxg4 $16 20. Nxg4 (20. hxg4 f6 $14) 20... Nf5) 20. gxh5 $1 $18 {[%emt 0:03:01]} fxe5 {[%emt 0:00:47]} 21. hxg6 {[%emt 0:06:16]} e4 {[%emt 0:07:20] [#]} 22. Nh4 {[%emt 0:05:17]} Nxd4 {[%emt 0:04:41]} 23. Qh5 {[%emt 0:00:56][%csl Gg6][%cal Rh5h7] Wards off Rf3} Nf3+ {[%emt 0:11:28] [#]} (23... Nxg6 $16 {was necessary.} 24. Nxg6 Nf3+ 25. Kf1 Qb5+ 26. Re2 Qe8) 24. Nxf3 {[%emt 0:04:58]} (24. Kh1 $1 $18 {[%csl Gg6][%cal Rh5h7]} Rf4 25. Nxf3 Rxf3 26. Bd1) 24... Rxf3 $16 {[%emt 0:00:14]} 25. Ng4 {[%emt 0:06:26]} (25. Bd2 $16 {Black must now prevent Bb4.} a5 26. Qh7+ Kf8 27. Bc3) 25... e5 $1 $15 {[%emt 0:01:23] ...Bxg4 is the strong threat. The board is on fire.} 26. Qh7+ {[%emt 0:01:02]} ({White should play} 26. Re3 $1 $15 Bxg4 27. hxg4) 26... Kf8 $17 {[%emt 0:00:02][%cal Oc8g4]} 27. Bh6 $2 {[%emt 0:05:12]} (27. Re3 $17 Bxg4 (27... Qxg6 $2 28. Rxf3+ Ke8 29. Qxg6+ Nxg6 30. Nf6+ Bxf6 31. Rxf6 $18) 28. hxg4) 27... Qxg6 $19 {[%emt 0:00:25]} (27... Rxh3 28. Qh8+ (28. Bxg7+ Ke8 $18) 28... Ng8 29. Qxg7+ (29. Bxg7+ Ke7 $18) 29... Ke8 30. Ba4+ (30. Qxg8+ Kd7 $18) 30... Kd8 31. Bg5+ (31. Qxg8+ Kc7 $18) (31. Qxg8+ Kc7 $18)) 28. Qh8+ {[%emt 0:00:38]} Kf7 {[%emt 0:01:17]} 29. Qxg7+ {[%emt 0:00:07]} Qxg7 {[%emt 0:00:04]} 30. Bxg7 {[%emt 0:00:02]} Bxg4 {[%emt 0:03:03]} 31. hxg4 {[%emt 0:01:11]} Kxg7 {[%emt 0:00:05]} 32. Bd1 {[%emt 0:00:41]} Rh3 {[%emt 0:00:26] aiming for ...Rah8.} 33. Re3 {[%emt 0:00:28]} Rh4 {[%emt 0:00:31]} 34. Rc1 {[%emt 0:00:28]} (34. Rb3 $142) 34... Nc6 $2 {[%emt 0:02:20]} (34... Rah8 $19 {is more deadly.} 35. Kf1 Rh1+ 36. Ke2 R8h2) 35. Rc5 {[%emt 0:00:36]} (35. Rb3 $17 {was forced.} Ra7 36. Kg2) 35... Rah8 $2 {[%emt 0:00:40]} (35... Rd8 $19 {Threatens to win with ...Kf6.} 36. Rb3 Rd7) 36. Rxd5 $11 {[%emt 0:00:32]} Nd4 $36 {[%emt 0:00:32][%mdl 2048] ...Rh1+ would now be deadly. White is under pressure.} 37. Ba4 $2 {[%emt 0:00:31][%mdl 8192]} (37. Rd7+ $2 Kf6 38. Rd6+ Kg5 (38... Ke7 39. Rxd4 Rh1+ 40. Kg2 $11) 39. Rxe4 Rh1+ 40. Kg2 Rxd1 $17) (37. Rxe4 $11 Rh1+ 38. Kg2) 37... Nf3+ {[%emt 0:00:57] Black mates.} 38. Kg2 {[%emt 0:00:30]} Rh2+ {[%emt 0:00:08]} 39. Kf1 {[%emt 0:00:03]} Rh1+ {[%emt 0:00:04] Weighted Error Value: White=0.72/Black=0.44.  Loses game:     	White=2     	Black=1      Missed win:     	---       	Black=3      Mistake:       	White=5     	Black=2      Inaccurate:     	White=1     	Black=1      OK:         	White=8     	Black=16     Best:        	White=2     	Black=1      Strong:       	White=1     	Black=1} 0-1

[Event "Marshall CC U2400 January 2024"]
[Site "New York"]
[Date "2024.01.22"]
[Round "5.3"]
[White "Jiang, Jason"]
[Black "Das, Aditeya"]
[Result "1-0"]
[ECO "D45"]
[WhiteElo "1864"]
[BlackElo "1791"]
[Annotator "NA RC COMBH"]
[PlyCount "51"]
[EventDate "2024.01.19"]
[EventType "swiss"]
[EventCountry "USA"]
[SourceTitle "playchess.com"]
[Source "ChessBase"]
[SourceQuality "1"]
[TimeControl "5400+30"]

1. c4 {[%emt 0:00:09]} c6 {[%emt 0:09:18]} 2. Nf3 {[%emt 0:00:09]} Nf6 {[%emt 0:00:34]} 3. Nc3 {[%emt 0:00:13]} d5 {[%emt 0:00:13]} 4. e3 {[%emt 0:00:20]} e6 {[%emt 0:00:25]} 5. b3 {[%emt 0:02:18]} Nbd7 {[%emt 0:00:35]} 6. d4 {[%emt 0:01:19]} Bd6 {[%emt 0:04:43]} 7. Be2 {[%emt 0:05:08]} O-O {[%emt 0:00:51]} 8. O-O {[%emt 0:00:37]} b6 {[%emt 0:01:58]} 9. Bb2 {[%emt 0:01:20]} Bb7 {[%emt 0:00:26]} 10. Rc1 {[%emt 0:01:01]} a6 {[%emt 0:02:41]} 11. Qc2 {[%emt 0:03:05]} c5 {[%emt 0:01:17]} 12. cxd5 {[%emt 0:03:07]} cxd4 {[%emt 0:08:44]} 13. Nxd4 {[%emt 0:02:29]} Nxd5 {[%emt 0:00:17]} 14. Nxd5 {[%emt 0:09:19]} Bxd5 {[%emt 0:01:53]} 15. Bf3 {[%emt 0:02:21]} Bxf3 {[%emt 0:11:31]} 16. Nxf3 {[%emt 0:00:24]} Qe7 {[%emt 0:00:35]} 17. Rfd1 {[%emt 0:03:56]} Rfd8 {[%emt 0:01:15]} 18. Nd4 {[%emt 0:25:51]} Ne5 {[%emt 0:11:03]} 19. f4 {[%emt 0:02:26]} Ng4 {[%emt 0:01:24]} 20. Nc6 {[%emt 0:01:53]} Qh4 {[%emt 0:01:08]} 21. g3 {[%emt 0:00:07]} Qh3 {[%emt 0:01:22]} 22. Nxd8 {[%emt 0:00:34]} Bc5 {[%emt 0:01:18]} 23. Bd4 {[%emt 0:01:34]} Nxe3 {[%emt 0:04:35]} 24. Bxe3 {[%emt 0:00:35]} Bxe3+ {[%emt 0:00:09]} 25. Kh1 {[%emt 0:00:20]} Bxc1 {[%emt 0:00:09]} 26. Qc6 {[%emt 0:00:42]} 1-0